bitfinex/quotes_SOLUSD_20240925
["timestamp","ask_amount","ask_price","bid_price","bid_amount"]
[1727270590346,6.6476,150.43,150.39,6.649]
[1727270591329,26.6471,150.45,150.4,7.97837548]
[1727270591645,6.6473,150.44,150.4,7.97837548]
[1727270591846,20.0,150.46,150.39,17.53981226]
[1727270591847,6.6476,150.43,150.39,17.53981226]
[1727270592245,6.6476,150.43,150.39,10.89051226]
[1727270592417,0.9226664,150.45,150.39,10.89051226]
[1727270592616,0.9226664,150.45,150.37,17.54061226]
[1727270592617,6.6485,150.41,150.37,17.54061226]
[1727270593061,0.9226664,150.45,150.35,16.6272]
[1727270593344,6.6496,150.39,150.35,16.6272]
[1727270595926,6.6502,150.37,150.34,27.47261226]
[1727270597052,6.6499,150.38,150.34,27.47261226]
[1727270597354,6.6495,150.39,150.35,1.33015412]
[1727270597550,6.6495,150.39,150.34,27.47261226]
[1727270598732,0.9226664,150.38,150.34,34.12401226]
[1727270599354,6.6495,150.39,150.34,34.12401226]
[1727270600249,6.6495,150.39,150.34,27.47261226]
[1727270600459,6.6489,150.4,150.36,6.6506]
[1727270600752,6.6493,150.39,150.35,6.651]
[1727270602852,7.5724664,150.38,150.34,50.75231226]
[1727270603034,0.9226664,150.37,150.34,10.89051226]
[1727270603234,6.6507,150.36,150.33,6.1422]
[1727270603431,6.6507,150.36,150.32,6.8948478]
[1727270603632,36.6216,150.41,150.32,17.78536006]
[1727270603838,6.6503,150.37,150.32,17.78536006]
[1727270608155,6.6503,150.37,150.32,11.13296006]
[1727270608346,6.6503,150.37,150.33,6.6519]
[1727270610165,20.0,150.38,150.34,12.22073485]
[1727270610338,20.0,150.38,150.35,6.6509]
[1727270610964,6.6502,150.38,150.34,10.89051226]
[1727270611270,7.5730664,150.37,150.34,10.89051226]
[1727270611560,7.5733664,150.36,150.33,16.6296]
[1727270611862,6.6507,150.36,150.33,16.6296]
[1727270612465,6.6507,150.36,150.32,11.13296006]
[1727270612946,7.5737664,150.35,150.32,11.13296006]
[1727270613160,6.6511,150.35,150.32,11.13296006]
[1727270616939,20.9226664,150.37,150.32,0.2424478]
[1727270617145,6.6512,150.35,150.32,0.2424478]
[1727270622173,6.6507,150.36,150.32,6.8948478]
[1727270624172,6.6507,150.36,150.33,10.89051226]
[1727270624646,6.88998095,150.39,150.33,17.54241226]
[1727270624647,6.6503,150.37,150.33,17.54241226]
[1727270624847,6.6503,150.37,150.33,10.89051226]
[1727270625544,7.5733664,150.36,150.33,10.89051226]
[1727270626556,6.6507,150.36,150.33,10.89051226]
[1727270627073,6.6507,150.36,150.32,23.5256478]
[1727270627845,0.9226664,150.35,150.32,16.8733478]
[1727270628570,0.9226664,150.34,150.32,0.2424478]
[1727270629445,6.652,150.33,150.32,0.2424478]
[1727270634162,6.6516,150.34,150.32,0.2424478]
[1727270637153,20.0,150.36,150.33,10.89051226]
[1727270637359,26.6508,150.36,150.33,10.89051226]
[1727270637773,23.51382449,150.4,150.33,10.89051226]
[1727270638103,6.6499,150.38,150.34,6.6515]
[1727270638384,20.0,150.37,150.35,10.89051226]
[1727270639659,20.0,150.37,150.34,1.33024642]
[1727270639987,7.5733664,150.36,150.32,6.8945478]
[1727270640152,6.6507,150.36,150.32,6.8945478]
[1727270640353,6.6518,150.34,150.32,0.2424478]
[1727270641789,6.6511,150.35,150.32,0.2424478]
[1727270642885,36.624,150.39,150.32,0.2424478]
[1727270643064,20.0,150.35,150.32,0.2424478]
[1727270643788,23.776884,150.42,150.32,0.2424478]
[1727270644080,0.9226664,150.41,150.33,6.652]
[1727270644481,0.9226664,150.41,150.32,17.78526006]
[1727270645483,6.6507,150.36,150.32,17.78526006]
[1727270645892,0.9226664,150.35,150.32,0.2424478]
[1727270646185,6.6512,150.35,150.32,0.2424478]
[1727270646371,6.6507,150.36,150.32,0.2424478]
[1727270646574,6.6507,150.36,150.32,1.57275863]
[1727270646974,6.6507,150.36,150.32,8.22505863]
[1727270647190,6.6507,150.36,150.32,6.8947478]
[1727270650382,6.6507,150.36,150.32,8.2250635]
[1727270651567,6.6507,150.36,150.32,6.8947478]
[1727270651988,6.6512,150.35,150.32,0.2424478]
[1727270653101,7.5743664,150.34,150.32,0.2424478]
[1727270653285,6.6514,150.35,150.32,0.2424478]
[1727270658502,26.6503,150.37,150.33,7.9822881]
[1727270658994,6.6503,150.37,150.33,7.9822881]
[1727270659298,6.6501,150.38,150.34,17.54201226]
[1727270660495,16.6218,150.41,150.36,10.89051226]
[1727270660496,20.0,150.41,150.36,10.89051226]
[1727270660789,16.6186,150.44,150.36,10.89051226]
[1727270661002,6.6492,150.4,150.36,17.54111226]
[1727270662870,23.505193,150.44,150.36,17.54111226]
[1727270662871,6.6486,150.41,150.37,1.32996195]
[1727270663303,23.776884,150.43,150.36,17.54111226]
[1727270663304,6.6489,150.4,150.36,17.54111226]
[1727270664710,0.9226664,150.42,150.35,10.89051226]
[1727270664996,6.6495,150.39,150.35,17.54141226]
[1727270668708,7.5724664,150.38,150.34,16.6287]
[1727270668999,6.6498,150.38,150.34,16.6287]
[1727270670018,6.6498,150.38,150.34,23.2802]
[1727270672705,23.50692391,150.42,150.32,22.9321478]
[1727270672706,6.6507,150.36,150.32,22.9321478]
[1727270672905,6.6512,150.35,150.32,22.9321478]
[1727270682621,6.652,150.33,150.32,0.2424478]
[1727270690519,20.0,150.38,150.32,0.2424478]
[1727270690825,23.56455203,150.39,150.32,0.2424478]
[1727270691033,6.6511,150.36,150.32,0.2424478]
[1727270691221,23.56455203,150.39,150.34,6.6515]
[1727270691222,13.59025203,150.39,150.34,6.6515]
[1727270691409,6.6497,150.39,150.34,30.66546435]
[1727270691923,6.6499,150.38,150.34,30.66546435]
[1727270692507,6.6499,150.38,150.34,29.3354]
[1727270694425,6.6499,150.38,150.34,22.6839]
[1727270694824,6.6503,150.37,150.34,22.6839]
[1727270699141,6.6511,150.35,150.34,6.2762]
[1727270699337,43.776884,150.41,150.32,0.2424478]
[1727270699338,59.009484,150.41,150.32,0.2424478]
[1727270699526,6.652,150.33,150.32,0.2424478]
[1727270699731,16.6252,150.38,150.32,0.2424478]
[1727270699732,6.6512,150.35,150.32,0.2424478]
[1727270699922,6.6508,150.36,150.32,11.13296006]
[1727270700419,20.0,150.42,150.34,10.89051226]
[1727270700622,6.6493,150.4,150.36,10.89051226]
[1727270700836,20.0,150.42,150.37,1.32990591]
[1727270701142,20.0,150.42,150.36,17.54101226]
[1727270701143,7.5712664,150.41,150.36,17.54101226]
[1727270703038,6.6486,150.41,150.36,17.54101226]
[1727270703443,6.93215747,150.45,150.38,10.89051226]
[1727270703625,6.6475,150.44,150.4,10.89051226]
[1727270703834,1.15423193,150.47,150.41,6.2687]
[1727270704035,6.6476,150.43,150.41,6.2687]
[1727270706317,6.648,150.42,150.41,6.2687]
[1727270706548,6.648,150.42,150.38,17.54021226]
[1727270707251,6.6485,150.41,150.37,22.8066]
[1727270707442,6.649,150.4,150.37,6.1816]
[1727270707746,20.0,150.45,150.37,7.51146992]
[1727270707931,6.6489,150.4,150.37,7.51146992]
[1727270708629,6.6485,150.41,150.37,14.16166992]
[1727270709035,6.6485,150.41,150.37,7.51146992]
[1727270709531,6.649,150.4,150.37,6.1816]
[1727270709731,6.6493,150.39,150.37,6.1816]
[1727270709932,6.6498,150.38,150.35,16.4897]
[1727270710323,6.6507,150.36,150.33,6.0974]
[1727270710552,7.5738664,150.35,150.33,6.0974]
[1727270710754,6.6515,150.34,150.33,6.0974]
[1727270710958,0.9226664,150.39,150.33,6.0974]
[1727270710959,6.6511,150.35,150.33,6.0974]
[1727270712836,6.6519,150.34,150.31,16.98219413]
[1727270713161,6.6519,150.34,150.31,15.6518]
[1727270717241,7.5746664,150.33,150.29,6.631]
[1727270717451,6.652,150.33,150.29,6.631]
[1727270717834,6.6517,150.34,150.29,14.61520086]
[1727270720965,6.6517,150.34,150.3,6.6531]
[1727270721971,6.6517,150.34,150.29,7.96160086]
[1727270722135,6.6517,150.34,150.29,14.61530086]
[1727270722839,20.0,150.37,150.3,28.85386536]
[1727270723046,6.6507,150.36,150.32,8.22518471]
[1727270723456,6.6512,150.35,150.32,0.2424478]
[1727270726637,6.6508,150.36,150.32,0.2424478]
[1727270728243,6.6511,150.35,150.32,0.2424478]
[1727270728861,6.6511,150.35,150.32,1.57278408]
[1727270729063,6.6511,150.35,150.32,0.2424478]
[1727270729359,20.0,150.38,150.32,0.2424478]
[1727270729360,7.5743664,150.34,150.32,0.2424478]
[1727270729539,20.0,150.38,150.32,0.2424478]
[1727270729540,23.776884,150.37,150.32,0.2424478]
[1727270729941,6.6515,150.35,150.32,0.2424478]
[1727270730458,23.776884,150.37,150.32,0.2424478]
[1727270730643,6.6517,150.34,150.32,0.2424478]
[1727270730842,6.652,150.33,150.32,0.2424478]
[1727270735262,40.402884,150.37,150.32,0.2424478]
[1727270735466,6.6517,150.34,150.32,0.2424478]
[1727270736253,6.6506,150.37,150.32,17.78536006]
[1727270736461,6.6506,150.37,150.33,7.98213688]
[1727270738456,0.9226664,150.37,150.32,17.78526006]
[1727270738660,6.6508,150.36,150.32,17.78526006]
[1727270741078,6.652,150.33,150.32,0.2424478]
[1727270742773,6.6517,150.34,150.32,0.2424478]
[1727270743586,20.0,150.37,150.32,0.2424478]
[1727270743775,6.6514,150.35,150.32,0.2424478]
[1727270744174,0.9226664,150.34,150.32,0.2424478]
[1727270744370,6.6517,150.34,150.32,0.2424478]
[1727270745365,7.5746664,150.33,150.32,0.2424478]
[1727270745568,6.652,150.33,150.32,0.2424478]
[1727270749091,7.85128453,150.36,150.32,0.2424478]
[1727270749307,6.6519,150.34,150.32,0.2424478]
[1727270754002,6.92861813,150.36,150.32,0.2424478]
[1727270754176,6.92861813,150.36,150.35,12.8246]
[1727270754377,6.92861813,150.36,150.35,6.1735]
[1727270754591,6.92861813,150.36,150.32,22.1480478]
[1727270754794,13.57961813,150.36,150.32,15.4959478]
[1727270755105,6.92861813,150.36,150.32,15.4959478]
[1727270755403,6.6511,150.35,150.32,15.4959478]
[1727270762202,6.6511,150.35,150.32,16.82628487]
[1727270762410,6.6511,150.35,150.32,15.4959478]
[1727270763222,6.652,150.33,150.32,0.2424478]
[1727270768292,6.6517,150.34,150.32,0.2424478]
[1727270769117,6.652,150.33,150.32,0.2424478]
[1727270769835,6.92861813,150.36,150.32,0.2424478]
[1727270770132,6.92861813,150.36,150.32,13.4602478]
[1727270770306,6.92861813,150.36,150.32,6.8079478]
[1727270770623,6.6514,150.35,150.32,6.8079478]
[1727270775238,7.5740664,150.35,150.32,6.8079478]
[1727270775438,0.9226664,150.35,150.32,6.8079478]
[1727270775612,6.6516,150.34,150.32,6.8079478]
[1727270776145,6.92861813,150.36,150.32,6.8079478]
[1727270776306,13.57941813,150.36,150.32,13.4600478]
[1727270776507,13.57941813,150.36,150.32,24.35056006]
[1727270777219,6.92861813,150.36,150.33,6.6519]
[1727270777516,6.92861813,150.36,150.32,34.32926006]
[1727270777943,13.57941813,150.36,150.32,34.32926006]
[1727270778534,6.6512,150.35,150.32,23.4387478]
[1727270779034,13.57941813,150.36,150.33,1.33031329]
[1727270779244,13.57941813,150.36,150.32,40.98136006]
[1727270779635,13.57941813,150.36,150.33,1.3301352]
[1727270779936,6.92861813,150.36,150.33,1.3301352]
[1727270780836,6.92861813,150.36,150.32,40.98136006]
[1727270781030,13.57931813,150.36,150.32,40.98136006]
[1727270782842,6.92861813,150.36,150.33,6.6517]
[1727270783017,6.92861813,150.36,150.34,1.33012747]
[1727270783346,6.92861813,150.36,150.33,6.6517]
[1727270785116,6.92861813,150.36,150.32,56.35606006]
[1727270785638,6.92861813,150.36,150.35,6.6511]
[1727270786441,6.92861813,150.36,150.34,34.17031226]
[1727270786638,6.92861813,150.36,150.34,35.50025748]
[1727270786815,6.92861813,150.36,150.34,34.17031226]
[1727270787017,6.92861813,150.36,150.34,27.51891226]
[1727270790538,6.92861813,150.36,150.32,39.72526006]
[1727270790748,13.57941813,150.36,150.32,39.72526006]
[1727270791043,13.57941813,150.36,150.34,10.89051226]
[1727270791044,6.92861813,150.36,150.34,10.89051226]
[1727270791241,33.2356,150.45,150.35,7.98097071]
[1727270791242,6.6497,150.39,150.35,7.98097071]
[1727270791428,16.6187,150.44,150.36,17.54121226]
[1727270791429,6.649,150.4,150.36,17.54121226]
[1727270791631,6.649,150.4,150.36,10.89051226]
[1727270791827,6.6494,150.39,150.36,10.89051226]
[1727270792026,6.6494,150.39,150.35,16.6274]
[1727270793029,20.9226664,150.43,150.35,16.6274]
[1727270793233,6.6499,150.38,150.34,17.54201226]
[1727270794275,6.649,150.4,150.36,17.54111226]
[1727270794637,20.0,150.44,150.36,17.54111226]
[1727270794838,6.6486,150.41,150.36,17.54111226]
[1727270795459,20.0,150.44,150.36,17.54111226]
[1727270795662,6.649,150.4,150.36,17.54111226]
[1727270795847,6.649,150.4,150.36,6.6506]
[1727270796354,6.6494,150.39,150.35,30.427884]
[1727270796731,6.6494,150.39,150.35,6.651]
[1727270797544,17.5421664,150.43,150.34,16.6285]
[1727270797854,6.6502,150.37,150.34,16.6285]
[1727270798060,6.6502,150.37,150.32,22.1824478]
[1727270798230,6.6502,150.37,150.32,28.8344478]
[1727270800132,0.9226664,150.4,150.32,28.8344478]
[1727270800444,6.6512,150.35,150.32,22.1824478]
[1727270800960,0.9226664,150.4,150.32,22.1824478]
[1727270800961,6.6508,150.36,150.32,22.1824478]
[1727270804263,6.6499,150.38,150.33,18.87244419]
[1727270804450,6.6499,150.38,150.33,17.54231226]
[1727270805461,0.9226664,150.4,150.33,6.6518]
[1727270805664,6.6505,150.37,150.33,6.6518]
[1727270806166,32.0299,150.41,150.33,27.52001226]
[1727270806357,6.6497,150.39,150.35,6.6511]
[1727270810367,6.6497,150.39,150.34,6.6514]
[1727270811570,6.6498,150.38,150.34,6.6514]
[1727270811770,6.6503,150.37,150.33,34.17191226]
[1727270812266,6.6503,150.37,150.33,23.2814]
[1727270812472,6.6497,150.39,150.35,6.6511]
[1727270812637,6.6497,150.39,150.36,1.32989621]
[1727270813863,6.91702917,150.42,150.36,1.32989621]
[1727270814168,6.91702917,150.42,150.36,12.22040847]
[1727270814464,17.5410664,150.44,150.37,6.6501]
[1727270814670,6.6485,150.41,150.37,6.6501]
[1727270815766,22.57543624,150.45,150.38,7.97936164]
[1727270815966,13.55303624,150.45,150.4,6.6486]
[1727270816268,6.6479,150.43,150.39,16.6228]
[1727270816577,6.6479,150.43,150.4,1.32958738]
[1727270817146,6.6479,150.43,150.39,16.6228]
[1727270817559,6.6472,150.44,150.39,23.2718]
[1727270818762,0.9226664,150.46,150.39,16.6228]
[1727270819048,6.6468,150.45,150.4,6.6488]
[1727270819879,6.6472,150.44,150.4,6.6488]
[1727270820257,6.6468,150.45,150.4,6.6488]
[1727270820587,6.6468,150.45,150.41,6.6484]
[1727270821255,6.6468,150.45,150.39,16.6228]
[1727270821479,6.6468,150.45,150.4,6.6488]
[1727270821772,6.6463,150.46,150.42,6.648]
[1727270823168,6.6459,150.47,150.43,7.97675544]
[1727270823366,6.6459,150.47,150.43,30.72495544]
[1727270823759,7.0674204,150.49,150.44,6.6471]
[1727270823956,6.6454,150.48,150.45,1.32909213]
[1727270824177,6.6462,150.46,150.43,22.7482]
[1727270825268,6.6459,150.47,150.43,29.3957]
[1727270825473,0.4221204,150.49,150.45,6.6464]
[1727270825807,0.4221204,150.49,150.44,16.6174]
[1727270825976,6.6454,150.48,150.44,16.6174]
[1727270826283,6.6454,150.48,150.44,23.2644]
[1727270829699,7.0671204,150.49,150.44,23.2644]
[1727270829869,7.0671204,150.49,150.44,16.6174]
[1727270830068,7.0671204,150.49,150.45,6.6466]
[1727270830890,0.4221204,150.49,150.46,7.97514995]
[1727270831072,0.4221204,150.49,150.46,18.86566221]
[1727270831864,7.0670204,150.49,150.45,6.6466]
[1727270832065,7.0670204,150.49,150.44,23.2642]
[1727270832271,7.0670204,150.49,150.45,6.6466]
[1727270834695,6.6455,150.48,150.44,16.6174]
[1727270834879,6.6455,150.48,150.44,23.2643]
[1727270836100,6.6463,150.46,150.43,22.7482]
[1727270836392,6.6463,150.46,150.43,6.1145]
[1727270836599,6.6463,150.46,150.42,20.0]
[1727270836771,6.6463,150.46,150.41,23.2688]
[1727270838000,6.6463,150.46,150.42,6.648]
[1727270838491,6.6463,150.46,150.43,1.32923498]
[1727270838686,6.6463,150.46,150.42,6.648]
[1727270841083,6.6475,150.44,150.4,26.6488]
[1727270841399,6.6475,150.44,150.4,6.6488]
[1727270842777,6.647,150.45,150.41,6.6484]
[1727270843176,6.647,150.45,150.42,1.32928361]
[1727270844078,6.6464,150.46,150.42,1.32928361]
[1727270847095,6.6459,150.47,150.43,6.6475]
[1727270847328,7.32673465,150.49,150.44,12.21965238]
[1727270847622,7.32673465,150.49,150.44,23.2645]
[1727270847623,6.6457,150.48,150.44,23.2645]
[1727270847824,6.6458,150.47,150.44,16.6174]
[1727270848820,6.6458,150.47,150.45,1.32908141]
[1727270848997,0.4221204,150.49,150.45,1.32908141]
[1727270849326,0.4221204,150.49,150.45,6.6466]
[1727270849500,0.4221204,150.49,150.43,6.6474]
[1727270849822,6.6462,150.46,150.42,26.6479]
[1727270850121,6.6464,150.46,150.43,1.32924762]
[1727270850318,6.6468,150.45,150.41,23.2687]
[1727270850888,6.6464,150.46,150.41,23.2687]
[1727270851294,6.6459,150.47,150.42,7.97713572]
[1727270851691,6.6459,150.47,150.43,6.6474]
[1727270851891,6.6468,150.45,150.41,23.269]
[1727270852092,6.6464,150.46,150.42,1.32925827]
[1727270852338,6.6464,150.46,150.42,7.97715827]
[1727270852493,0.4221204,150.49,150.42,6.6479]
[1727270852707,6.6459,150.47,150.42,6.6479]
[1727270853215,6.6459,150.47,150.43,6.6475]
[1727270855121,6.6455,150.48,150.43,6.6475]
[1727270855322,6.6458,150.47,150.43,6.6475]
[1727270855525,6.6458,150.47,150.41,16.6206]
[1727270855699,6.6458,150.47,150.42,6.6479]
[1727270856201,6.6458,150.47,150.41,16.6206]
[1727270856400,6.6458,150.47,150.43,6.6475]
[1727270858125,6.6458,150.47,150.44,1.32913117]
[1727270858725,6.6458,150.47,150.43,6.6475]
[1727270859605,6.6454,150.48,150.44,7.97611162]
[1727270860397,6.6454,150.48,150.44,6.647]
[1727270861229,6.6454,150.48,150.43,16.6187]
[1727270861947,6.6454,150.48,150.44,6.6471]
[1727270865231,6.6462,150.47,150.43,23.2663]
[1727270865540,6.6465,150.46,150.42,6.6477]
[1727270867135,17.0352204,150.49,150.4,16.6214]
[1727270867632,0.4221204,150.49,150.41,1.32930768]
[1727270867820,6.6459,150.47,150.43,6.6474]
[1727270868025,6.6459,150.47,150.44,1.32911393]
[1727270868422,6.6459,150.47,150.43,6.6474]
[1727270868611,6.6459,150.47,150.42,23.2672]
[1727270869244,6.6459,150.47,150.42,16.6196]
[1727270869437,6.6459,150.47,150.43,6.6475]
[1727270869826,6.6459,150.47,150.44,1.32916354]
[1727270870139,0.4221204,150.49,150.44,17.94656354]
[1727270870337,0.4221204,150.49,150.46,6.6462]
[1727270870511,0.4221204,150.49,150.45,6.6466]
[1727270871034,7.0671204,150.49,150.45,6.6466]
[1727270871337,6.6457,150.48,150.44,16.6174]
[1727270871536,7.0671204,150.49,150.44,23.2644]
[1727270871937,0.4221204,150.49,150.45,6.6464]
[1727270872117,0.4221204,150.49,150.46,6.6462]
[1727270872841,0.4221204,150.49,150.44,16.6174]
[1727270873022,0.4221204,150.49,150.45,6.6466]
[1727270876924,0.4221204,150.49,150.44,16.6174]
[1727270876925,6.6455,150.48,150.44,23.2644]
[1727270877333,6.646,150.47,150.44,16.6174]
[1727270877530,6.646,150.47,150.43,6.6474]
[1727270877846,7.0674204,150.49,150.44,6.647]
[1727270878355,7.0674204,150.49,150.45,6.6466]
[1727270880439,0.4221204,150.49,150.46,6.6461]
[1727270881145,0.4221204,150.49,150.45,16.6164]
[1727270881146,0.4221204,150.49,150.48,6.6454]
[1727270881315,0.4221204,150.49,150.47,1.3288684]
[1727270881516,0.4221204,150.49,150.47,7.9745684]
[1727270882022,0.4221204,150.49,150.47,1.3288684]
[1727270882232,0.4221204,150.49,150.47,17.9430684]
[1727270882447,0.4221204,150.49,150.47,24.5887684]
[1727270882647,0.4221204,150.49,150.43,43.776884]
[1727270882846,0.4221204,150.49,150.4,20.0]
[1727270883023,6.6464,150.46,150.41,6.6483]
[1727270883227,6.6464,150.46,150.4,36.622]
[1727270883228,6.6467,150.45,150.4,23.2708]
[1727270883451,6.6476,150.44,150.38,6.6493]
[1727270885433,6.648,150.43,150.38,6.6493]
[1727270886660,16.0808,150.47,150.4,6.6489]
[1727270886844,6.6468,150.45,150.4,6.6489]
[1727270887349,16.0808,150.47,150.39,16.6226]
[1727270887350,6.6463,150.46,150.41,6.6484]
[1727270888152,16.0808,150.47,150.39,16.6226]
[1727270888342,22.7267,150.47,150.42,6.648]
[1727270888934,0.4221204,150.49,150.43,1.32921272]
[1727270889239,6.6458,150.47,150.43,23.2657]
[1727270889451,6.6458,150.47,150.43,16.6182]
[1727270890354,6.6463,150.46,150.41,6.6484]
[1727270893133,6.6463,150.46,150.42,6.6479]
[1727270893432,6.6457,150.48,150.43,6.6474]
[1727270893629,20.4221204,150.49,150.43,6.6474]
[1727270893862,6.6458,150.47,150.43,6.6474]
[1727270896949,6.6457,150.48,150.43,6.6474]
[1727270897250,6.6457,150.48,150.42,16.6197]
[1727270897458,7.0673204,150.49,150.44,6.6469]
[1727270897645,7.0673204,150.49,150.45,1.32902923]
[1727270898041,7.0673204,150.49,150.44,6.6469]
[1727270898961,6.6454,150.48,150.44,6.6469]
[1727270912282,6.6454,150.48,150.45,1.3290683]
[1727270912660,6.6454,150.48,150.44,6.6469]
[1727270912978,6.8878478,150.48,150.44,6.6469]
[1727270914173,0.2424478,150.48,150.4,33.66481226]
[1727270914481,0.2424478,150.48,150.45,6.6466]
[1727270917476,1.1651142,150.48,150.44,16.6176]
[1727270917649,6.6458,150.47,150.44,16.6176]
[1727270917854,6.8879478,150.48,150.44,23.2647]
[1727270919375,0.2424478,150.48,150.44,16.6176]
[1727270919583,0.2424478,150.48,150.45,6.6467]
[1727270924291,0.2424478,150.48,150.44,16.6176]
[1727270924480,6.6462,150.46,150.42,6.6479]
[1727270924878,0.2424478,150.48,150.47,6.6458]
[1727270927000,0.2424478,150.48,150.46,7.97504038]
[1727270927371,0.2424478,150.48,150.47,6.6458]
[1727270934283,0.2424478,150.48,150.47,7.97466048]
[1727270934502,0.2424478,150.48,150.47,6.6458]
[1727270937010,0.2424478,150.48,150.47,7.97460923]
[1727270938314,0.2424478,150.48,150.47,6.6458]
[1727270941781,0.2424478,150.48,150.47,7.97455936]
[1727270943303,0.2424478,150.48,150.47,62.64195562]
[1727270944086,0.2424478,150.48,150.47,61.31319626]
[1727270944286,0.2220806,150.51,150.48,43.776884]
[1727270944509,0.2220806,150.51,150.5,37.53501226]
[1727270944688,0.2220806,150.51,150.5,61.31189626]
[1727270945517,0.2220806,150.51,150.5,26.6445]
[1727270946192,0.2220806,150.51,150.5,50.421384]
[1727270950208,0.2220806,150.51,150.5,61.31189626]
[1727270952690,0.2220806,150.51,150.5,62.63998725]
[1727270953815,0.2220806,150.51,150.5,68.80028725]
[1727270953998,0.2220806,150.51,150.5,84.35498725]
[1727270954199,8.06e-05,150.51,150.5,84.35498725]
[1727270954411,8.06e-05,150.51,150.5,83.02689626]
[1727270955197,0.2424478,150.53,150.51,43.776884]
[1727270955398,0.2424478,150.53,150.52,50.420484]
[1727270956214,0.2424478,150.53,150.52,26.6436]
[1727270957121,0.2424478,150.53,150.52,27.9695242]
[1727270958002,0.2424478,150.53,150.52,26.6436]
[1727270958998,0.2424478,150.53,150.52,50.420484]
[1727270960201,0.2424478,150.53,150.52,61.31099626]
[1727270960396,0.2424478,150.57,150.56,26.6418]
[1727270961726,0.2424478,150.57,150.56,6.6418]
[1727270962098,16.3147478,150.57,150.55,23.2473]
[1727270962315,16.3147478,150.57,150.55,16.6052]
[1727270962710,16.3147478,150.57,150.52,16.6086]
[1727270962915,16.3147478,150.57,150.52,23.2521]
[1727270963223,22.9562478,150.57,150.52,23.2521]
[1727270963721,16.3147478,150.57,150.53,6.643]
[1727270967414,17.2374142,150.57,150.53,6.643]
[1727270967614,23.8789142,150.57,150.53,6.643]
[1727270968725,6.6419,150.56,150.52,23.2521]
[1727270969023,6.6419,150.56,150.52,16.6086]
[1727270969416,16.3147478,150.57,150.47,33.2277]
[1727270969632,22.9561478,150.57,150.48,20.0]
[1727270969833,22.9561478,150.57,150.52,6.6434]
[1727270970139,22.9561478,150.57,150.53,6.6431]
[1727270971331,22.9561478,150.57,150.52,6.6435]
[1727270971836,6.6425,150.55,150.51,23.253]
[1727270972742,6.642,150.56,150.51,23.253]
[1727270974539,6.6424,150.55,150.51,23.253]
[1727270974710,6.6424,150.55,150.51,16.6091]
[1727270975439,7.5654664,150.54,150.5,6.6443]
[1727270975608,0.9226664,150.53,150.48,16.6128]
[1727270975808,0.9226664,150.53,150.49,6.6446]
[1727270976216,6.6428,150.54,150.49,6.6446]
[1727270976531,6.6428,150.54,150.5,6.6444]
[1727270976841,6.6433,150.53,150.49,6.6448]
[1727270978016,6.6424,150.55,150.5,6.6441]
[1727270978341,6.6424,150.55,150.51,6.644]
[1727270978835,20.0,150.56,150.48,16.6128]
[1727270979139,6.6428,150.54,150.5,6.6443]
[1727270981657,6.6433,150.53,150.49,6.6448]
[1727270981963,6.6429,150.54,150.49,6.6448]
[1727270982354,6.6429,150.54,150.5,6.6444]
[1727270985158,6.6423,150.55,150.51,6.6436]
[1727270987367,16.3147478,150.57,150.52,23.2521]
[1727270987567,6.6418,150.56,150.52,23.2521]
[1727270987760,6.6424,150.55,150.52,16.6087]
[1727270991572,6.6424,150.55,150.51,6.6437]
[1727271000281,43.776884,150.56,150.49,16.6117]
[1727271000587,6.6441,150.51,150.47,6.6454]
[1727271000799,20.0,150.56,150.5,16.6109]
[1727271000992,16.3147478,150.57,150.51,6.644]
[1727271001191,6.6419,150.56,150.52,6.6435]
[1727271001396,22.9561478,150.57,150.52,6.6435]
[1727271001698,6.6423,150.55,150.51,6.6439]
[1727271001879,6.643,150.54,150.5,16.6109]
[1727271002082,0.9226664,150.53,150.47,23.2597]
[1727271002282,6.6444,150.51,150.47,16.6142]
[1727271002596,0.9226664,150.5,150.44,16.6173]
[1727271002805,6.6463,150.46,150.42,6.648]
[1727271003097,0.9226664,150.45,150.41,16.8630478]
[1727271003302,6.6463,150.46,150.41,16.8630478]